bitfinex/quotes_BTCUSD_20250428
["timestamp","ask_amount","ask_price","bid_price","bid_amount"]
[1745803631683,0.001,93254.0,93253.0,0.27670377]
[1745803633795,0.001,93254.0,93253.0,0.16981363]
[1745803636425,1.05979495,93255.0,93254.0,0.01454085]
[1745803636843,1.05979495,93255.0,93254.0,0.01354085]
[1745803638398,1.06079495,93255.0,93254.0,0.01354085]
[1745803640069,1.16768509,93255.0,93254.0,0.01354085]
[1745803641486,1.16768509,93255.0,93254.0,0.15975548]
[1745803644848,1.50768509,93255.0,93254.0,0.14621463]
[1745803645187,1.55758509,93255.0,93254.0,0.14621463]
[1745803646195,1.55658509,93255.0,93254.0,0.14621463]
[1745803646779,1.55758509,93255.0,93254.0,0.14621463]
[1745803647420,1.55758509,93255.0,93254.0,0.0150517]
[1745803647947,2.25758509,93255.0,93254.0,0.0150517]
[1745803649072,2.55069495,93255.0,93254.0,0.0150517]
[1745803649202,2.50079495,93255.0,93254.0,0.0150517]
[1745803652188,2.50079495,93255.0,93244.0,0.0150517]
[1745803652365,1.3874,93254.0,93244.0,0.0150517]
[1745803652592,1.0874,93254.0,93244.0,0.0150517]
[1745803652771,0.34,93252.0,93244.0,0.0150517]
[1745803653004,0.34,93252.0,93243.0,0.0004242]
[1745803653005,0.6,93244.0,93243.0,0.0004242]
[1745803653332,1.99979495,93244.0,93243.0,0.0004242]
[1745803653624,0.34,93243.0,93235.0,0.001]
[1745803653826,0.00268129,93242.0,93235.0,0.00093503]
[1745803654055,0.34,93240.0,93235.0,0.00093503]
[1745803654260,0.01985575,93239.0,93235.0,0.00087024]
[1745803654665,0.74,93223.0,93222.0,98.2249276]
[1745803654850,1.79979495,93223.0,93222.0,98.6355276]
[1745803655194,1.8196507,93223.0,93222.0,98.6355276]
[1745803655408,1.91430953,93223.0,93222.0,98.6355276]
[1745803655793,1.91430953,93223.0,93222.0,98.6365276]
[1745803656367,1.92594227,93223.0,93222.0,98.6365276]
[1745803657506,1.83128344,93223.0,93222.0,98.6365276]
[1745803657713,1.83028344,93223.0,93222.0,98.6355276]
[1745803657910,1.83128344,93223.0,93222.0,98.6395276]
[1745803658111,1.83128344,93223.0,93222.0,98.64744353]
[1745803658340,1.83689405,93223.0,93222.0,98.64744353]
[1745803658513,1.94378419,93223.0,93222.0,98.64744353]
[1745803659354,1.94378419,93223.0,93222.0,98.62498675]
[1745803659896,1.99308419,93223.0,93222.0,98.62498675]
[1745803660249,1.99208419,93223.0,93222.0,98.62098675]
[1745803660457,2.69208419,93223.0,93222.0,98.62198675]
[1745803660638,2.69308419,93223.0,93222.0,98.62198675]
[1745803660856,2.72040328,93223.0,93222.0,98.62198675]
[1745803661539,2.72140328,93223.0,93222.0,98.62198675]
[1745803663279,2.72140328,93223.0,93222.0,98.21138675]
[1745803664872,2.72140328,93223.0,93222.0,98.19849347]
[1745803666702,3.72140328,93223.0,93222.0,98.17236772]
[1745803666924,3.72140328,93223.0,93222.0,98.15426772]
[1745803667186,3.72140328,93223.0,93222.0,98.10054653]
[1745803667639,3.72140328,93223.0,93222.0,98.02531629]
[1745803667868,3.72140328,93223.0,93222.0,97.9882455]
[1745803668076,3.72140328,93223.0,93222.0,97.88080312]
[1745803668219,4.22140328,93223.0,93222.0,97.82708193]
[1745803668401,4.22140328,93223.0,93222.0,97.71963955]
[1745803668604,4.22040328,93223.0,93222.0,97.69224955]
[1745803668810,4.28043292,93223.0,93222.0,97.69224955]
[1745803668988,4.2504984,93223.0,93222.0,97.69224955]
[1745803669419,4.22040328,93223.0,93222.0,97.69224955]
[1745803669675,4.21940328,93223.0,93222.0,97.69124955]
[1745803669845,4.22240328,93223.0,93222.0,97.69124955]
[1745803670057,4.22440328,93223.0,93222.0,97.68193955]
[1745803670921,4.22440328,93223.0,93222.0,97.62821836]
[1745803672115,3.82440328,93223.0,93222.0,97.62821836]
[1745803672334,2.32821314,93223.0,93222.0,97.62821836]
[1745803672560,2.30089405,93223.0,93222.0,97.62821836]
[1745803672759,3.04089405,93223.0,93222.0,97.64275921]
[1745803673242,2.1780383,93223.0,93222.0,97.64275921]
[1745803673463,2.1760383,93223.0,93222.0,97.64275921]
[1745803673639,2.1770383,93223.0,93222.0,97.64275921]
[1745803673792,1.4770383,93223.0,93222.0,97.64275921]
[1745803673993,1.4760383,93223.0,93222.0,97.64375921]
[1745803674409,1.52460916,93223.0,93222.0,97.64375921]
[1745803674825,1.52360916,93223.0,93222.0,97.64375921]
[1745803675519,2.8160383,93223.0,93222.0,97.62921836]
[1745803675737,2.8160383,93223.0,93222.0,97.60919836]
[1745803675947,2.84335772,93223.0,93222.0,97.61219836]
[1745803676143,2.84435772,93223.0,93222.0,97.61419836]
[1745803676356,3.54435772,93223.0,93222.0,97.61119836]
[1745803676775,2.95424786,93223.0,93222.0,97.60919836]
[1745803676982,2.95224786,93223.0,93222.0,97.61019836]
[1745803677187,2.95424786,93223.0,93222.0,97.61019836]
[1745803679742,3.65424786,93223.0,93222.0,97.61019836]
[1745803680185,4.15424786,93223.0,93222.0,97.61019836]
[1745803680607,4.17407355,93223.0,93222.0,97.59019836]
[1745803681481,4.15424786,93223.0,93222.0,97.59019836]
[1745803682625,4.15424786,93223.0,93222.0,97.590134]
[1745803682839,4.15424786,93223.0,93222.0,97.571624]
[1745803684454,4.17408805,93223.0,93222.0,97.56339401]
[1745803685024,3.1142931,93223.0,93222.0,97.56339401]
[1745803685894,2.1142931,93223.0,93222.0,97.56339401]
[1745803686188,3.1142931,93223.0,93222.0,97.56339401]
[1745803686777,3.1142931,93223.0,93222.0,97.50966725]
[1745803687090,3.1142931,93223.0,93222.0,97.47768725]
[1745803687639,3.09445291,93223.0,93222.0,97.38885845]
[1745803687917,3.09445291,93223.0,93222.0,97.31692965]
[1745803688058,3.09445291,93223.0,93222.0,97.25197073]
[1745803688243,3.09445291,93223.0,93222.0,97.19824193]
[1745803688443,3.11428967,93223.0,93222.0,97.14451313]
[1745803688689,3.11428967,93223.0,93222.0,97.03705553]
[1745803688898,3.11428967,93223.0,93222.0,96.72718006]
[1745803688899,3.11528967,93223.0,93222.0,96.72718006]
[1745803689100,3.11528967,93223.0,93222.0,96.71912031]
[1745803689332,3.16218967,93223.0,93222.0,96.61166271]
[1745803689572,3.15818967,93223.0,93222.0,96.55693391]
[1745803689693,3.16118967,93223.0,93222.0,96.42927493]
[1745803689894,3.16418967,93223.0,93222.0,96.37554613]
[1745803690094,3.16418967,93223.0,93222.0,96.32181733]
[1745803690289,3.16418967,93223.0,93222.0,96.21435973]
[1745803690534,3.16418967,93223.0,93222.0,96.16063093]
[1745803690760,3.16418967,93223.0,93222.0,96.06572213]
[1745803690970,3.19428479,93223.0,93222.0,95.94349333]
[1745803691172,3.22121931,93223.0,93222.0,95.93429633]
[1745803691307,3.22421931,93223.0,93222.0,95.82683873]
[1745803691513,3.22821931,93223.0,93222.0,95.77310993]
[1745803691713,3.22821931,93223.0,93222.0,95.67853113]
[1745803691965,3.22821931,93223.0,93222.0,95.57107353]
[1745803692156,3.19828479,93223.0,93222.0,95.51734473]
[1745803692373,3.16818967,93223.0,93222.0,95.46036593]
[1745803692561,3.14835291,93223.0,93222.0,95.40663713]
[1745803692717,3.14835291,93223.0,93222.0,95.35290833]
[1745803693056,3.14835291,93223.0,93222.0,95.29917953]
[1745803693273,3.14835291,93223.0,93222.0,95.24545073]
[1745803693569,3.14835291,93223.0,93222.0,95.15461193]
[1745803693950,3.14835291,93223.0,93222.0,95.09677066]
[1745803694150,3.14835291,93223.0,93222.0,95.04304186]
[1745803694470,3.14835291,93223.0,93222.0,94.93558426]
[1745803694648,3.14835291,93223.0,93222.0,94.88185546]
[1745803694848,3.14835291,93223.0,93222.0,94.82812091]
[1745803695098,3.14835291,93223.0,93222.0,94.77438636]
[1745803695099,3.18576277,93223.0,93222.0,94.77438636]
[1745803695233,1.29456277,93223.0,93222.0,94.77438636]
[1745803695439,1.15456277,93223.0,93222.0,94.78892721]
[1745803695641,1.46724335,93223.0,93222.0,95.24912721]
[1745803696064,1.11724335,93223.0,93222.0,95.24912721]
[1745803696263,0.41724335,93223.0,93222.0,95.25012721]
[1745803696463,0.50996769,93223.0,93222.0,95.25012721]
[1745803696663,0.75824335,93223.0,93222.0,95.25012721]
[1745803697751,0.75724335,93223.0,93222.0,95.25012721]
[1745803697977,0.75724335,93223.0,93222.0,95.25312721]
[1745803698103,0.76024335,93223.0,93222.0,95.25312721]
[1745803698510,0.75724335,93223.0,93222.0,95.25312721]
[1745803698934,0.83396769,93223.0,93222.0,95.25312721]
[1745803700394,0.75824335,93223.0,93222.0,95.25312721]
[1745803704593,0.75824335,93223.0,93222.0,95.18898636]
[1745803704965,0.94688904,93223.0,93222.0,95.18898636]
[1745803707675,0.94688904,93223.0,93222.0,95.20352721]
[1745803712523,0.94688904,93223.0,93222.0,95.18898636]
[1745803712689,1.24638794,93223.0,93222.0,94.77838636]
[1745803713021,2.24638794,93223.0,93222.0,94.68374297]
[1745803713228,3.44638794,93223.0,93222.0,94.44103844]
[1745803713755,3.44538794,93223.0,93222.0,94.43803844]
[1745803713899,3.47275756,93223.0,93222.0,94.43803844]
[1745803714098,3.47975756,93223.0,93222.0,94.43803844]
[1745803714415,3.47575756,93223.0,93222.0,94.38432343]
[1745803714942,3.45238794,93223.0,93222.0,94.38432343]
[1745803715825,3.45238794,93223.0,93222.0,94.36805399]
[1745803716586,2.45238794,93223.0,93222.0,94.36805399]
[1745803716726,3.45238794,93223.0,93222.0,94.36805399]
[1745803716928,3.45238794,93223.0,93222.0,94.31433898]
[1745803717132,3.45238794,93223.0,93222.0,93.86455712]
[1745803717328,3.45238794,93223.0,93222.0,93.75903733]
[1745803717329,3.49818794,93223.0,93222.0,93.75903733]
[1745803717532,3.51498927,93223.0,93222.0,93.70533733]
[1745803717772,3.51498927,93223.0,93222.0,93.59793733]
[1745803717973,3.53835325,93223.0,93222.0,93.54423733]
[1745803718175,3.53835325,93223.0,93222.0,93.49053733]
[1745803718380,3.54035325,93223.0,93222.0,93.3831034]
[1745803718717,3.54035325,93223.0,93222.0,93.32936947]
[1745803718918,3.54435325,93223.0,93222.0,93.27563554]
[1745803719229,3.54435325,93223.0,93222.0,93.22190161]
[1745803719436,3.54435325,93223.0,93222.0,93.16816768]
[1745803719737,3.53935325,93223.0,93222.0,93.16816768]
[1745803719909,3.53535325,93223.0,93222.0,93.11443375]
[1745803720085,3.54235325,93223.0,93222.0,93.06069982]
[1745803720286,3.54735325,93223.0,93222.0,93.06169982]
[1745803720492,3.54735325,93223.0,93222.0,93.00298589]
[1745803720692,3.53672051,93223.0,93222.0,93.00298589]
[1745803721438,3.54422051,93223.0,93222.0,93.00298589]
[1745803721640,3.54522051,93223.0,93222.0,93.00298589]
[1745803722017,3.52841918,93223.0,93222.0,93.00298589]
[1745803723024,3.5010552,93223.0,93222.0,93.00298589]
[1745803723635,3.6030552,93223.0,93222.0,93.00298589]
[1745803725224,3.61985713,93223.0,93222.0,93.00298589]
[1745803726043,3.61669825,93223.0,93222.0,93.00298589]
[1745803726460,3.61424652,93223.0,93222.0,93.00298589]
[1745803727051,3.59744459,93223.0,93222.0,93.00298589]
[1745803727238,2.59744459,93223.0,93222.0,93.00298589]
[1745803727592,3.59744459,93223.0,93222.0,93.00298589]
[1745803728791,3.35014569,93223.0,93222.0,93.00298589]
[1745803728996,3.34264569,93223.0,93222.0,93.00298589]
[1745803729200,3.36998879,93223.0,93222.0,93.00298589]
[1745803729393,3.37560078,93223.0,93222.0,93.00298589]
[1745803730232,3.47760078,93223.0,93222.0,93.00298589]
[1745803730376,3.52520078,93223.0,93222.0,93.00298589]
[1745803730576,3.63209092,93223.0,93222.0,93.00298589]
[1745803731509,3.47760078,93223.0,93222.0,93.00298589]
[1745803732026,3.07760078,93223.0,93222.0,93.00298589]
[1745803732183,3.03560078,93223.0,93222.0,93.00140569]
[1745803732390,3.00125768,93223.0,93222.0,93.00140569]
[1745803732584,3.45414782,93223.0,93222.0,93.00040569]
[1745803732931,3.44914782,93223.0,93222.0,93.00115484]
[1745803733086,3.44614782,93223.0,93222.0,93.00109248]
[1745803733290,3.44614782,93223.0,93222.0,93.00009248]
[1745803733493,3.44814782,93223.0,93222.0,93.00109248]
[1745803737683,3.47551752,93223.0,93222.0,93.00109248]
[1745803739262,2.47551752,93223.0,93222.0,93.00109248]
[1745803739410,3.47551752,93223.0,93222.0,93.00109248]
[1745803742519,3.36862738,93223.0,93222.0,93.00109248]
[1745803742930,2.02862738,93223.0,93222.0,93.04749248]
[1745803743167,2.02301539,93223.0,93222.0,93.04749248]
[1745803743379,1.86301539,93223.0,93222.0,93.04749248]
[1745803743779,1.86101539,93223.0,93222.0,93.04749248]
[1745803743977,1.65801539,93223.0,93222.0,93.04649248]
[1745803744213,1.76790553,93223.0,93222.0,93.04949248]
[1745803745365,1.76590553,93223.0,93222.0,93.04949248]
[1745803745617,1.76690553,93223.0,93222.0,93.05049248]
[1745803745797,1.66001539,93223.0,93222.0,93.05049248]
[1745803747793,1.63264569,93223.0,93222.0,93.05049248]
[1745803748232,1.63264569,93223.0,93222.0,93.47563333]
[1745803748439,1.63259364,93223.0,93222.0,93.47563333]
[1745803748659,2.83259364,93223.0,93222.0,93.41569248]
[1745803748857,2.93948378,93223.0,93222.0,93.00509248]
[1745803749729,2.96686596,93223.0,93222.0,93.00509248]
[1745803750377,1.96686596,93223.0,93222.0,93.00509248]
[1745803750531,2.96686596,93223.0,93222.0,93.00509248]
[1745803751384,2.96491801,93223.0,93222.0,93.00309248]
[1745803751851,2.93753583,93223.0,93222.0,93.00309248]
[1745803754510,2.83064569,93223.0,93222.0,93.00309248]
[1745803756387,2.43064569,93223.0,93222.0,93.00309248]
[1745803756827,1.83064569,93223.0,93222.0,93.00309248]
[1745803760866,1.29064569,93223.0,93222.0,93.62992347]
[1745803761031,1.31805807,93223.0,93222.0,93.62992347]
[1745803761400,1.31805807,93223.0,93222.0,93.52303333]
[1745803761603,1.31705807,93223.0,93222.0,93.52203333]
[1745803762002,1.28964569,93223.0,93222.0,93.52003333]
[1745803762209,1.28964569,93223.0,93222.0,93.62792347]
[1745803762517,1.28964569,93223.0,93222.0,93.62692347]
[1745803762762,1.29064569,93223.0,93222.0,93.62792347]
[1745803763001,1.29164569,93223.0,93222.0,93.63292347]
[1745803763186,0.59164569,93223.0,93222.0,93.63292347]
[1745803771733,0.67932415,93223.0,93222.0,93.58632347]
[1745803772063,1.01932415,93223.0,93222.0,93.58632347]
[1745803772261,0.93164569,93223.0,93222.0,93.58632347]
[1745803772924,0.93164569,93223.0,93222.0,91.46150332]
[1745803773126,1.63164569,93223.0,93222.0,90.07078834]
[1745803773323,1.63164569,93223.0,93222.0,88.9251818]
[1745803773520,1.63164569,93223.0,93222.0,86.83421608]
[1745803773728,1.73853583,93223.0,93222.0,85.65827606]
[1745803773927,1.73266727,93223.0,93222.0,85.65827606]
[1745803774301,1.62577713,93223.0,93222.0,85.65827606]
[1745803774513,1.62577713,93223.0,93222.0,85.67281691]
[1745803774514,1.22577713,93223.0,93222.0,85.67281691]
[1745803774761,0.92577713,93223.0,93222.0,85.67281691]
[1745803775774,1.62577713,93223.0,93222.0,85.67281691]
[1745803777689,0.92577713,93223.0,93222.0,85.67281691]
[1745803780164,1.03266727,93223.0,93222.0,85.67281691]
[1745803783110,1.03266727,93223.0,93222.0,84.56042538]
[1745803783286,1.14031646,93223.0,93222.0,83.5159905]
[1745803785403,1.14031646,93223.0,93222.0,82.59593313]
[1745803786460,1.84031646,93223.0,93222.0,81.71583152]
[1745803788222,1.84031646,93223.0,93222.0,80.87559471]
[1745803792737,1.84031646,93223.0,93222.0,80.71233417]
[1745803795801,1.9472066,93223.0,93222.0,80.71233417]
[1745803796739,1.84031646,93223.0,93222.0,80.71233417]
[1745803797126,1.14031646,93223.0,93222.0,80.71233417]
[1745803800999,1.14031646,93223.0,93222.0,79.0207867]
[1745803801180,2.18711646,93223.0,93222.0,78.18228339]
[1745803801384,2.2940066,93223.0,93222.0,78.18228339]
[1745803801989,2.2930066,93223.0,93222.0,78.18128339]
[1745803802195,2.2910066,93223.0,93222.0,78.17628339]
[1745803802393,2.9930066,93223.0,93222.0,78.17728339]
[1745803802595,2.9930066,93223.0,93222.0,77.76668339]
[1745803803273,3.01288026,93223.0,93222.0,77.76668339]
[1745803805224,3.01288026,93223.0,93222.0,76.7755574]
[1745803808293,2.01288026,93223.0,93222.0,76.24036651]
[1745803808496,3.01288026,93223.0,93222.0,76.15127211]
[1745803808873,2.85919012,93223.0,93222.0,76.15127211]
[1745803809478,2.85919012,93223.0,93222.0,76.15120027]
[1745803809882,2.45919012,93223.0,93222.0,76.16574112]
[1745803810092,2.51919012,93223.0,93222.0,76.77533126]
[1745803810452,2.31919012,93223.0,93222.0,76.9342214]
[1745803810713,2.31919012,93223.0,93222.0,76.82733126]
[1745803810849,2.31919012,93223.0,93222.0,76.77633126]
[1745803811055,1.61919012,93223.0,93222.0,76.77633126]
[1745803811256,1.59731646,93223.0,93222.0,76.77633126]
[1745803811457,1.59731646,93223.0,93222.0,76.77333126]
[1745803811679,1.59831646,93223.0,93222.0,76.77633126]
[1745803811993,1.59931646,93223.0,93222.0,76.78533126]
[1745803812321,1.59831646,93223.0,93222.0,76.77333126]
[1745803812499,1.60031646,93223.0,93222.0,76.78333126]
[1745803812643,1.59931646,93223.0,93222.0,76.77633126]
[1745803813058,1.59831646,93223.0,93222.0,76.77333126]
[1745803813582,1.59831646,93223.0,93222.0,76.82533126]
[1745803814171,1.59931646,93223.0,93222.0,76.83233126]
[1745803814487,1.18771646,93223.0,93222.0,76.41873126]
[1745803814700,1.40225579,93223.0,93222.0,76.41873126]
[1745803814896,1.40225579,93223.0,93222.0,76.42273126]
[1745803815245,1.40125579,93223.0,93222.0,76.41473126]
[1745803815448,1.40225579,93223.0,93222.0,76.42573126]
[1745803815596,1.40325579,93223.0,93222.0,76.42673126]
[1745803815797,1.40325579,93223.0,93222.0,76.43496673]
[1745803820271,0.99265579,93223.0,93222.0,76.84556673]
[1745803822005,0.002,93223.0,93222.0,76.84556673]
[1745803822156,0.02,93232.0,93231.0,0.06554085]
[1745803822355,1.07979495,93232.0,93231.0,0.26563099]
[1745803822560,0.2,93237.0,93236.0,0.11134085]
[1745803822809,1.25979495,93237.0,93236.0,0.26943009]
[1745803823014,0.2,93247.0,93241.0,0.051]
[1745803823183,0.2107242,93247.0,93241.0,0.21823099]
[1745803823384,0.01072455,93244.0,93241.0,0.26563099]
[1745803824407,0.21449453,93243.0,93241.0,0.26563099]
[1745803824597,0.01072455,93244.0,93241.0,0.37873099]
[1745803824789,0.01072455,93244.0,93241.0,0.306704]
[1745803824992,0.00113796,93242.0,93241.0,0.314704]
[1745803826011,0.00113796,93242.0,93241.0,0.319704]
[1745803826222,0.21563357,93242.0,93241.0,0.27863099]
[1745803826361,0.21563357,93242.0,93241.0,0.16569014]
[1745803826362,1.27542852,93242.0,93241.0,0.16569014]
[1745803826563,1.27542852,93242.0,93241.0,0.12089014]
[1745803826564,2.27542852,93242.0,93241.0,0.12089014]
[1745803826757,2.27542852,93242.0,93241.0,0.13543099]
[1745803826962,0.00104434,93242.0,93241.0,0.18543099]
[1745803827162,4.434e-05,93242.0,93241.0,0.12743099]
[1745803827386,4.434e-05,93242.0,93241.0,0.17943099]
[1745803827587,4.434e-05,93242.0,93241.0,0.28119099]
[1745803828129,4.434e-05,93242.0,93241.0,0.27419099]
[1745803828327,0.00104434,93242.0,93241.0,0.28519099]
[1745803828632,0.00104434,93242.0,93241.0,0.28219099]
[1745803829139,1.00104434,93242.0,93241.0,0.54103099]
[1745803829495,1.00204434,93242.0,93241.0,0.54903099]
[1745803830283,1.10893448,93242.0,93241.0,0.54803099]
[1745803830483,1.00204434,93242.0,93241.0,0.54803099]
[1745803831098,1.00004434,93242.0,93241.0,0.53203099]
[1745803831294,1.01981069,93242.0,93241.0,0.53203099]
[1745803831495,1.02081069,93242.0,93241.0,0.4186]
[1745803831830,1.02081069,93242.0,93234.0,0.10172]
[1745803831831,0.42525904,93226.0,93224.0,0.10164]
[1745803832159,1.48505399,93226.0,93225.0,0.10689014]
[1745803832352,1.50482564,93226.0,93225.0,0.12143099]
[1745803832555,1.50482564,93226.0,93225.0,0.10689014]
[1745803832737,1.50482564,93226.0,93225.0,0.12143099]
[1745803833356,1.48505399,93226.0,93225.0,0.12143099]
[1745803833758,2.48505399,93226.0,93225.0,0.12143099]
[1745803834578,2.48605399,93226.0,93225.0,0.12943099]
[1745803834909,2.48605399,93226.0,93225.0,0.12543099]
[1745803835215,2.48605399,93226.0,93225.0,0.12943099]
[1745803835753,0.21453933,93223.0,93222.0,75.32600689]
[1745803835972,1.60283933,93223.0,93222.0,74.50525086]
[1745803836170,1.62262513,93223.0,93222.0,72.79225003]
[1745803836370,1.72951527,93223.0,93222.0,72.01974879]
[1745803836520,1.83640541,93223.0,93222.0,71.14304574]
[1745803837039,1.83840541,93223.0,93222.0,71.14404574]
[1745803837340,2.53640541,93223.0,93222.0,71.14304574]
[1745803837744,2.54801653,93223.0,93222.0,71.14304574]
[1745803837906,2.3334772,93223.0,93222.0,71.14304574]
[1745803838875,2.3384772,93223.0,93222.0,71.14404574]
[1745803839193,2.3384772,93223.0,93222.0,71.09724574]
[1745803840194,2.8384772,93223.0,93222.0,71.09724574]
[1745803841025,3.23322706,93223.0,93222.0,71.09724574]
[1745803841244,3.13158706,93223.0,93222.0,71.09724574]
[1745803841443,3.45419631,93223.0,93222.0,71.09724574]
[1745803842020,3.45419631,93223.0,93222.0,71.05044574]
[1745803842021,3.50079631,93223.0,93222.0,71.05044574]
[1745803842221,3.45249631,93223.0,93222.0,70.62220339]
[1745803842561,3.51468645,93223.0,93222.0,68.83287749]
[1745803842760,3.54679022,93223.0,93222.0,68.83287749]
[1745803842966,3.54079022,93223.0,93222.0,68.63616821]
[1745803843270,3.57413419,93223.0,93222.0,68.63516821]
[1745803843586,3.56713419,93223.0,93222.0,68.63516821]
[1745803843741,3.58393554,93223.0,93222.0,68.63516821]
[1745803843942,3.59293554,93223.0,93222.0,68.63516821]
[1745803844167,2.59293554,93223.0,93222.0,68.63516821]
[1745803844381,3.59293554,93223.0,93222.0,68.63516821]
[1745803844567,3.59693554,93223.0,93222.0,68.63616821]
[1745803844773,3.59293554,93223.0,93222.0,68.63516821]
[1745803845079,3.59893554,93223.0,93222.0,68.63616821]
[1745803845281,3.56759157,93223.0,93222.0,68.63616821]
[1745803845598,3.59893554,93223.0,93222.0,68.63616821]
[1745803845789,3.56759157,93223.0,93222.0,68.63616821]
[1745803846148,3.56763177,93223.0,93222.0,68.63616821]
[1745803846523,3.96143042,93223.0,93222.0,68.63616821]
[1745803846784,3.99273419,93223.0,93222.0,68.63616821]
[1745803846993,3.96139022,93223.0,93222.0,68.63616821]
[1745803847131,3.93008645,93223.0,93222.0,68.63616821]
[1745803847327,3.96139022,93223.0,93222.0,68.63616821]
[1745803848264,3.93008645,93223.0,93222.0,68.63616821]
[1745803849627,3.93008645,93223.0,93222.0,68.4348333]
[1745803850035,3.93008645,93223.0,93222.0,68.1324333]
[1745803850465,3.93008645,93223.0,93222.0,67.8324333]
[1745803850861,3.93008645,93223.0,93222.0,67.8110163]
[1745803852018,3.93012645,93223.0,93222.0,67.8110163]
[1745803852188,3.93012645,93223.0,93222.0,67.7910163]
[1745803852390,3.93012645,93223.0,93222.0,67.7667163]
[1745803852616,3.93012645,93223.0,93222.0,67.4584163]
[1745803857573,3.93016645,93223.0,93222.0,67.4584163]
[1745803858656,3.92746645,93223.0,93222.0,67.4584163]
[1745803860005,3.42574645,93223.0,93222.0,67.4584163]
[1745803860199,3.92746645,93223.0,93222.0,67.4584163]
[1745803860375,3.7064972,93223.0,93222.0,67.4584163]
[1745803861838,3.6047772,93223.0,93222.0,67.4584163]
[1745803862112,3.7063772,93223.0,93222.0,67.4584163]
[1745803862327,3.49788706,93223.0,93222.0,67.4584163]
[1745803862553,2.25948706,93223.0,93222.0,67.4584163]
[1745803862725,3.25948706,93223.0,93222.0,67.4584163]
[1745803862935,3.49788706,93223.0,93222.0,67.4584163]
[1745803863140,3.25948706,93223.0,93222.0,67.4584163]
[1745803863349,3.3663772,93223.0,93222.0,67.4584163]
[1745803863585,3.7063772,93223.0,93222.0,67.4584163]
[1745803863719,3.73369904,93223.0,93222.0,67.4584163]
[1745803864967,3.6268089,93223.0,93222.0,67.14997719]
[1745803865191,2.18968706,93223.0,93222.0,67.06309305]
[1745803865369,2.21703548,93223.0,93222.0,62.08586715]
[1745803865561,2.28718076,93223.0,93222.0,62.08586715]
[1745803865770,2.31654379,93223.0,93222.0,60.33586715]
[1745803865946,3.32647546,93223.0,93222.0,58.28862923]
[1745803866144,3.37273758,93223.0,93222.0,58.28762923]
[1745803866342,3.27113758,93223.0,93222.0,58.28762923]
[1745803866548,3.33993381,93223.0,93222.0,58.28762923]
[1745803866743,3.30841638,93223.0,93222.0,58.28762923]
[1745803866951,3.30841638,93223.0,93222.0,57.28762923]
[1745803866952,2.66965445,93223.0,93222.0,57.28762923]
[1745803867165,2.70095822,93223.0,93222.0,57.28762923]
[1745803867387,2.39864122,93223.0,93222.0,57.28762923]
[1745803867756,3.40464122,93223.0,93222.0,56.96902923]
[1745803867949,3.40464122,93223.0,93222.0,56.23160333]
[1745803868244,3.41024047,93223.0,93222.0,56.22540333]
[1745803868459,3.41024047,93223.0,93222.0,56.09210333]
[1745803868684,3.30841927,93223.0,93222.0,56.04630333]
[1745803868915,2.78247447,93223.0,93222.0,56.04630333]
[1745803869126,2.93227447,93223.0,93222.0,56.04630333]
[1745803869249,2.89931158,93223.0,93222.0,56.04630333]
[1745803869460,3.22235873,93223.0,93222.0,56.04630333]
[1745803870300,3.20635873,93223.0,93222.0,56.04630333]
[1745803870527,3.24692524,93223.0,93222.0,56.04630333]
[1745803870739,3.23292524,93223.0,93222.0,56.04630333]
[1745803871205,3.24092524,93223.0,93222.0,56.04630333]
[1745803871427,3.23992524,93223.0,93222.0,56.04530333]
[1745803871868,3.28295873,93223.0,93222.0,56.04530333]
[1745803872088,2.36321873,93223.0,93222.0,56.04530333]
[1745803872301,2.15632859,93223.0,93222.0,56.09290333]
[1745803872749,2.14332859,93223.0,93222.0,56.09290333]
[1745803873196,2.49232859,93223.0,93222.0,56.09290333]
[1745803873369,2.48239692,93223.0,93222.0,56.09290333]
[1745803873622,2.47339692,93223.0,93222.0,56.09290333]
[1745803874171,2.46539692,93223.0,93222.0,56.09290333]
[1745803874569,2.47039692,93223.0,93222.0,56.09290333]
[1745803874773,2.46539692,93223.0,93222.0,56.09290333]
[1745803875005,2.47139692,93223.0,93222.0,56.09290333]
[1745803875225,2.47239692,93223.0,93222.0,56.09290333]
[1745803875456,2.57328706,93223.0,93222.0,56.09290333]
[1745803875939,2.57828706,93223.0,93222.0,56.09290333]
[1745803876146,2.58820949,93223.0,93222.0,56.09290333]
[1745803876543,2.57631935,93223.0,93222.0,56.09290333]
[1745803876741,2.97631935,93223.0,93222.0,56.09290333]
[1745803876943,2.98431935,93223.0,93222.0,56.09290333]
[1745803877147,2.48431935,93223.0,93222.0,56.09290333]
[1745803877468,2.48331935,93223.0,93222.0,56.09290333]
[1745803877687,2.48631957,93223.0,93222.0,56.09290333]
[1745803878095,2.47831957,93223.0,93222.0,56.09290333]
[1745803878555,0.64151957,93223.0,93222.0,56.15524418]
[1745803878753,0.90091957,93223.0,93222.0,56.15524418]
[1745803878910,1.24091957,93223.0,93222.0,56.15524418]
[1745803879108,0.42253377,93223.0,93222.0,56.15524418]
[1745803879331,0.41092265,93223.0,93222.0,56.15524418]
[1745803879533,0.41492265,93223.0,93222.0,56.15524418]
[1745803879960,0.41092265,93223.0,93222.0,56.15524418]
[1745803880368,0.40992265,93223.0,93222.0,56.15524418]
[1745803880723,0.41092265,93223.0,93222.0,56.15524418]
[1745803881343,0.41292265,93223.0,93222.0,56.15524418]
[1745803882044,0.403,93223.0,93222.0,56.15524418]
[1745803885489,1.743,93223.0,93222.0,56.09290333]
[1745803887043,1.84989014,93223.0,93222.0,56.04630333]
[1745803887416,1.84789014,93223.0,93222.0,56.04630333]
[1745803887650,1.85189014,93223.0,93222.0,56.04630333]
[1745803887795,1.85289014,93223.0,93222.0,56.04630333]
[1745803888202,2.35678875,93223.0,93222.0,56.04630333]
[1745803888363,2.36378875,93223.0,93222.0,56.04630333]
[1745803888809,2.39142001,93223.0,93222.0,56.04630333]
[1745803889040,2.39342001,93223.0,93222.0,56.04630333]
[1745803889371,2.39342001,93223.0,93222.0,56.03824411]
[1745803890125,3.09342001,93223.0,93222.0,56.03824411]
[1745803890448,2.09342001,93223.0,93222.0,56.03824411]
[1745803890673,3.09342001,93223.0,93222.0,56.03824411]
[1745803891834,3.09442001,93223.0,93222.0,56.03824411]
[1745803892754,3.09442001,93223.0,93222.0,56.02534698]
[1745803893361,3.08542001,93223.0,93222.0,56.02534698]
[1745803893580,3.10542001,93223.0,93222.0,56.02534698]
[1745803894189,3.09242001,93223.0,93222.0,56.02534698]
[1745803894384,3.10442001,93223.0,93222.0,56.02534698]
[1745803894890,3.11003244,93223.0,93222.0,56.02534698]
[1745803896209,3.12683431,93223.0,93222.0,56.02534698]
[1745803896358,3.53743431,93223.0,93222.0,56.02534698]
[1745803897169,3.13743431,93223.0,93222.0,56.02534698]
[1745803897410,3.53743431,93223.0,93222.0,56.02534698]
[1745803898571,3.5275357,93223.0,93222.0,56.02534698]
[1745803899423,3.1275357,93223.0,93222.0,56.02534698]
[1745803899625,3.53745068,93223.0,93222.0,56.01728618]
[1745803899982,3.52064881,93223.0,93222.0,56.01728618]
[1745803900654,3.51073383,93223.0,93222.0,56.01728618]